[Event "Titled Tuesday Blitz August 09 Late 2022"]
[White "Przybylski, Wojciech"]
[Black "Wan, Joseph"]
[WhiteFideId "1117599"]
[BlackFideId "2069890"]
[WhiteElo "2133"]
[BlackElo "2198"]
[Result "1-0"]
[Round "09"]
[TimeControl "180+1"]
[Date "2022.08.09"]
[WhiteClock "0:00:03"]
[BlackClock "0:00:04"]

1. e4 {[%clk 0:02:53]}  g6 {[%clk 0:02:57]} 2. d4 {[%clk 0:02:52]}  Bg7 {[%clk 0:02:56]} 3. Nc3 {[%clk 0:02:52]}  d6 {[%clk 0:02:55]} 4. Nf3 {[%clk 0:02:52]}  a6 {[%clk 0:02:55]} 5. a4 {[%clk 0:02:52]}  b6 {[%clk 0:02:54]} 6. Be3 {[%clk 0:02:52]}  Nd7 {[%clk 0:02:51]} 7. Be2 {[%clk 0:02:51]}  e6 {[%clk 0:02:51]} 8. O-O {[%clk 0:02:51]}  Ne7 {[%clk 0:02:50]} 9. Qd2 {[%clk 0:02:51]}  h6 {[%clk 0:02:50]} 10. h3 {[%clk 0:02:50]}  Bb7 {[%clk 0:02:50]} 11. Rfe1 {[%clk 0:02:50]}  Kf8 {[%clk 0:02:50]} 12. Rad1 {[%clk 0:02:49]}  Kg8 {[%clk 0:02:50]} 13. Nh2 {[%clk 0:02:46]}  Kh7 {[%clk 0:02:50]} 14. f4 {[%clk 0:02:46]}  c5 {[%clk 0:02:48]} 15. Nf3 {[%clk 0:02:45]}  d5 {[%clk 0:02:45]} 16. e5 {[%clk 0:02:44]}  Nf5 {[%clk 0:02:45]} 17. Bf2 {[%clk 0:02:43]}  Rc8 {[%clk 0:02:46]} 18. g4 {[%clk 0:02:40]}  Nxd4 {[%clk 0:02:40]} 19. Nxd4 {[%clk 0:02:39]}  cxd4 {[%clk 0:02:41]} 20. Bxd4 {[%clk 0:02:39]}  Qh4 {[%clk 0:02:35]} 21. Bf1 {[%clk 0:02:21]}  Nc5 {[%clk 0:02:20]} 22. Qf2 {[%clk 0:02:05]}  Qe7 {[%clk 0:02:18]} 23. f5 {[%clk 0:01:59]}  gxf5 {[%clk 0:02:15]} 24. gxf5 {[%clk 0:01:57]}  Qg5+ {[%clk 0:02:16]} 25. Bg2 {[%clk 0:01:12]}  exf5 {[%clk 0:02:14]} 26. Rf1 {[%clk 0:01:05]}  Ne6 {[%clk 0:02:06]} 27. Qxf5+ {[%clk 0:00:46]}  Qxf5 {[%clk 0:02:07]} 28. Rxf5 {[%clk 0:00:45]}  Kg6 {[%clk 0:02:08]} 29. Rff1 {[%clk 0:00:21]}  Rc4 {[%clk 0:01:56]} 30. Bxb6 {[%clk 0:00:19]}  Bxe5 {[%clk 0:01:54]} 31. Nxd5 {[%clk 0:00:16]}  Re8 {[%clk 0:01:40]} 32. Ne3 {[%clk 0:00:14]}  Rb4 {[%clk 0:01:31]} 33. Ba5 {[%clk 0:00:06]}  Rxb2 {[%clk 0:01:30]} 34. Nc4 {[%clk 0:00:04]}  Bxg2 {[%clk 0:00:53]} 35. Nxe5+ {[%clk 0:00:04]}  Kh5 {[%clk 0:00:51]} 36. Kxg2 {[%clk 0:00:04]}  Ng5 {[%clk 0:00:52]} 37. Rf2 {[%clk 0:00:04]}  Rxe5 {[%clk 0:00:50]} 38. Bc3 {[%clk 0:00:04]}  Nxh3 {[%clk 0:00:44]} 39. Bxe5 {[%clk 0:00:04]}  Nxf2 {[%clk 0:00:42]} 40. Kxf2 {[%clk 0:00:04]}  Rxc2+ {[%clk 0:00:40]} 41. Kf3 {[%clk 0:00:04]}  Ra2 {[%clk 0:00:39]} 42. Bf4 {[%clk 0:00:04]}  Ra3+ {[%clk 0:00:38]} 43. Ke4 {[%clk 0:00:03]}  Rxa4+ {[%clk 0:00:36]} 44. Kf5 {[%clk 0:00:04]}  Ra5+ {[%clk 0:00:36]} 45. Be5 {[%clk 0:00:04]}  Ra4 {[%clk 0:00:30]} 46. Bf4 {[%clk 0:00:04]}  Ra5+ {[%clk 0:00:30]} 47. Be5 {[%clk 0:00:04]}  Ra4 {[%clk 0:00:30]} 48. Rh1+ {[%clk 0:00:04]}  Rh4 {[%clk 0:00:29]} 49. Ra1 {[%clk 0:00:04]}  Rc4 {[%clk 0:00:20]} 50. Rxa6 {[%clk 0:00:04]}  f6 {[%clk 0:00:16]} 51. Rxf6 {[%clk 0:00:04]}  Rc8 {[%clk 0:00:16]} 52. Rf7 {[%clk 0:00:04]}  Rg8 {[%clk 0:00:14]} 53. Rf6 {[%clk 0:00:04]}  Rg5+ {[%clk 0:00:14]} 54. Kf4 {[%clk 0:00:04]}  Rg4+ {[%clk 0:00:14]} 55. Kf5 {[%clk 0:00:05]}  Rg5+ {[%clk 0:00:14]} 56. Ke4 {[%clk 0:00:05]}  Rg4+ {[%clk 0:00:14]} 57. Bf4 {[%clk 0:00:05]}  Rg8 {[%clk 0:00:09]} 58. Rxh6+ {[%clk 0:00:04]}  Kg4 {[%clk 0:00:09]} 59. Rf6 {[%clk 0:00:04]}  Re8+ {[%clk 0:00:09]} 60. Be5 {[%clk 0:00:05]}  Kg5 {[%clk 0:00:09]} 61. Rf2 {[%clk 0:00:05]}  Kh4 {[%clk 0:00:06]} 62. Kf5 {[%clk 0:00:04]}  Rf8+ {[%clk 0:00:04]} 63. Bf6+ {[%clk 0:00:04]}  Kh3 {[%clk 0:00:05]} 64. Rf4 {[%clk 0:00:04]}  Kg2 {[%clk 0:00:04]} 65. Ke4 {[%clk 0:00:04]}  Re8+ {[%clk 0:00:04]} 66. Be5 {[%clk 0:00:04]}  Kg3 {[%clk 0:00:04]} 67. Rf8+ {[%clk 0:00:03]} 1-0


[Site "https://www.chess.com"]

[Event "Titled Tuesday Blitz August 09 Late 2022"]
[White "Voege, Tobias"]
[Black "Zhigalko, Sergei"]
[WhiteFideId "1270513"]
[BlackFideId "13502956"]
[WhiteElo "2360"]
[BlackElo "2662"]
[Result "0-1"]
[Round "09"]
[TimeControl "180+1"]
[Date "2022.08.09"]
[WhiteClock "0:00:32"]
[BlackClock "0:00:58"]

1. d4 {[%clk 0:03:00]}  Nf6 {[%clk 0:02:59]} 2. c4 {[%clk 0:03:01]}  e6 {[%clk 0:03:00]} 3. Nc3 {[%clk 0:03:01]}  Bb4 {[%clk 0:02:59]} 4. Nf3 {[%clk 0:03:01]}  b6 {[%clk 0:02:59]} 5. Bg5 {[%clk 0:03:01]}  h6 {[%clk 0:02:59]} 6. Bh4 {[%clk 0:03:01]}  g5 {[%clk 0:03:00]} 7. Bg3 {[%clk 0:03:02]}  Ne4 {[%clk 0:03:00]} 8. Qc2 {[%clk 0:03:03]}  Bb7 {[%clk 0:03:00]} 9. e3 {[%clk 0:03:03]}  Bxc3+ {[%clk 0:03:00]} 10. bxc3 {[%clk 0:03:04]}  d6 {[%clk 0:03:01]} 11. Bd3 {[%clk 0:03:04]}  f5 {[%clk 0:03:01]} 12. c5 {[%clk 0:03:04]}  Nd7 {[%clk 0:02:58]} 13. cxd6 {[%clk 0:03:02]}  cxd6 {[%clk 0:02:58]} 14. O-O {[%clk 0:03:01]}  Rc8 {[%clk 0:02:44]} 15. Qa4 {[%clk 0:02:49]}  Bc6 {[%clk 0:02:29]} 16. Qa3 {[%clk 0:02:39]}  Nxg3 {[%clk 0:02:08]} 17. fxg3 {[%clk 0:02:36]}  Qc7 {[%clk 0:01:56]} 18. Nd2 {[%clk 0:02:25]}  Nf6 {[%clk 0:01:46]} 19. Rae1 {[%clk 0:02:06]}  O-O {[%clk 0:01:40]} 20. e4 {[%clk 0:01:32]}  fxe4 {[%clk 0:01:37]} 21. Nxe4 {[%clk 0:01:28]}  Nxe4 {[%clk 0:01:00]} 22. Rxf8+ {[%clk 0:01:04]}  Rxf8 {[%clk 0:01:01]} 23. Bxe4 {[%clk 0:01:03]}  Bxe4 {[%clk 0:01:02]} 24. Rxe4 {[%clk 0:00:59]}  Qf7 {[%clk 0:01:02]} 25. h4 {[%clk 0:00:31]}  Qf1+ {[%clk 0:00:57]} 26. Kh2 {[%clk 0:00:32]}  Rf2 {[%clk 0:00:58]} 0-1


[Site "https://www.chess.com"]

[Event "Titled Tuesday Blitz August 09 Late 2022"]
[White "Wagner, Dennis"]
[Black "Ibarra Jerez, Jose Carlos"]
[WhiteFideId "24650684"]
[BlackFideId "2226332"]
[WhiteElo "2355"]
[BlackElo "2628"]
[Result "1/2-1/2"]
[Round "09"]
[TimeControl "180+1"]
[Date "2022.08.09"]
[WhiteClock "0:00:31"]
[BlackClock "0:00:15"]

1. e4 {[%clk 0:03:00]}  e5 {[%clk 0:02:58]} 2. Nf3 {[%clk 0:03:01]}  d6 {[%clk 0:02:58]} 3. d4 {[%clk 0:03:00]}  exd4 {[%clk 0:02:58]} 4. Nxd4 {[%clk 0:03:01]}  Nf6 {[%clk 0:02:59]} 5. Nc3 {[%clk 0:03:00]}  Be7 {[%clk 0:02:59]} 6. g3 {[%clk 0:02:57]}  d5 {[%clk 0:02:58]} 7. exd5 {[%clk 0:02:46]}  Nxd5 {[%clk 0:02:56]} 8. Bg2 {[%clk 0:02:43]}  Nxc3 {[%clk 0:02:56]} 9. bxc3 {[%clk 0:02:44]}  c5 {[%clk 0:02:56]} 10. Nf3 {[%clk 0:02:27]}  Qxd1+ {[%clk 0:02:51]} 11. Kxd1 {[%clk 0:02:28]}  Nc6 {[%clk 0:02:46]} 12. Be3 {[%clk 0:02:27]}  O-O {[%clk 0:02:45]} 13. Kc1 {[%clk 0:02:22]}  Rd8 {[%clk 0:02:24]} 14. Rd1 {[%clk 0:02:10]}  Bf5 {[%clk 0:02:12]} 15. Kb2 {[%clk 0:02:05]}  Na5 {[%clk 0:02:07]} 16. Rxd8+ {[%clk 0:01:56]}  Rxd8 {[%clk 0:02:06]} 17. Nd2 {[%clk 0:01:56]}  Bf6 {[%clk 0:02:01]} 18. Bf1 {[%clk 0:01:49]}  Rd6 {[%clk 0:01:56]} 19. Nb3 {[%clk 0:01:43]}  Nc6 {[%clk 0:01:25]} 20. Bxc5 {[%clk 0:01:43]}  Rd8 {[%clk 0:01:20]} 21. f4 {[%clk 0:01:34]}  b6 {[%clk 0:01:19]} 22. Bf2 {[%clk 0:01:32]}  Nb4 {[%clk 0:01:17]} 23. Bd4 {[%clk 0:01:11]}  Nxc2 {[%clk 0:01:11]} 24. Bxf6 {[%clk 0:01:11]}  gxf6 {[%clk 0:01:11]} 25. Rc1 {[%clk 0:00:55]}  Ne3 {[%clk 0:01:08]} 26. Nd4 {[%clk 0:00:53]}  Be6 {[%clk 0:00:57]} 27. Ba6 {[%clk 0:00:43]}  Bc4 {[%clk 0:00:51]} 28. Re1 {[%clk 0:00:43]}  Ng2 {[%clk 0:00:44]} 29. Rg1 {[%clk 0:00:31]}  Ne3 {[%clk 0:00:44]} 30. Re1 {[%clk 0:00:31]}  Ng2 {[%clk 0:00:43]} 31. Rg1 {[%clk 0:00:31]}  Bxa6 {[%clk 0:00:40]} 32. Rxg2 {[%clk 0:00:31]}  Re8 {[%clk 0:00:40]} 33. Rd2 {[%clk 0:00:29]}  h5 {[%clk 0:00:36]} 34. Nf5 {[%clk 0:00:25]}  Kh7 {[%clk 0:00:34]} 35. Nd6 {[%clk 0:00:15]}  Re7 {[%clk 0:00:29]} 36. c4 {[%clk 0:00:16]}  Kg6 {[%clk 0:00:28]} 37. Kc3 {[%clk 0:00:16]}  Re1 {[%clk 0:00:24]} 38. a4 {[%clk 0:00:11]}  Rc1+ {[%clk 0:00:19]} 39. Rc2 {[%clk 0:00:09]}  Rd1 {[%clk 0:00:20]} 40. Nb5 {[%clk 0:00:08]}  Bxb5 {[%clk 0:00:13]} 41. axb5 {[%clk 0:00:09]}  Kf5 {[%clk 0:00:13]} 42. Ra2 {[%clk 0:00:10]}  Rd7 {[%clk 0:00:13]} 43. Kb4 {[%clk 0:00:06]}  h4 {[%clk 0:00:11]} 44. c5 {[%clk 0:00:05]}  bxc5+ {[%clk 0:00:06]} 45. Kxc5 {[%clk 0:00:05]}  Kg4 {[%clk 0:00:05]} 46. Kc6 {[%clk 0:00:05]}  Re7 {[%clk 0:00:05]} 47. Kd6 {[%clk 0:00:05]}  Re6+ {[%clk 0:00:05]} 48. Kc5 {[%clk 0:00:05]}  Re7 {[%clk 0:00:06]} 49. Kd6 {[%clk 0:00:06]}  Rb7 {[%clk 0:00:06]} 50. Kc6 {[%clk 0:00:06]}  Rb6+ {[%clk 0:00:06]} 51. Kc5 {[%clk 0:00:07]}  Rb7 {[%clk 0:00:06]} 52. Ra6 {[%clk 0:00:06]}  hxg3 {[%clk 0:00:05]} 53. hxg3 {[%clk 0:00:07]}  f5 {[%clk 0:00:05]} 54. Rf6 {[%clk 0:00:08]}  Kxg3 {[%clk 0:00:04]} 55. Rxf5 {[%clk 0:00:08]}  Kg4 {[%clk 0:00:05]} 56. Rf6 {[%clk 0:00:08]}  Rc7+ {[%clk 0:00:05]} 57. Rc6 {[%clk 0:00:08]}  Re7 {[%clk 0:00:05]} 58. Rf6 {[%clk 0:00:08]}  Rc7+ {[%clk 0:00:04]} 59. Kb4 {[%clk 0:00:08]}  Rd7 {[%clk 0:00:04]} 60. Ka5 {[%clk 0:00:09]}  Rb7 {[%clk 0:00:03]} 61. Ka6 {[%clk 0:00:09]}  Re7 {[%clk 0:00:03]} 62. Ka5 {[%clk 0:00:07]}  Rd7 {[%clk 0:00:04]} 63. Ka6 {[%clk 0:00:08]}  Rc7 {[%clk 0:00:04]} 64. Ka5 {[%clk 0:00:08]}  Re7 {[%clk 0:00:03]} 65. Ka6 {[%clk 0:00:08]}  Kf3 {[%clk 0:00:04]} 66. Rf5 {[%clk 0:00:08]}  Kg4 {[%clk 0:00:03]} 67. Re5 {[%clk 0:00:08]}  Rd7 {[%clk 0:00:03]} 68. Re4 {[%clk 0:00:08]}  f5 {[%clk 0:00:03]} 69. Rc4 {[%clk 0:00:08]}  Re7 {[%clk 0:00:03]} 70. Rd4 {[%clk 0:00:08]}  Rf7 {[%clk 0:00:04]} 71. Rc4 {[%clk 0:00:09]}  Rg7 {[%clk 0:00:04]} 72. Rd4 {[%clk 0:00:09]}  Rh7 {[%clk 0:00:05]} 73. Rc4 {[%clk 0:00:10]}  Rd7 {[%clk 0:00:05]} 74. Rb4 {[%clk 0:00:10]}  Re7 {[%clk 0:00:05]} 75. Rc4 {[%clk 0:00:11]}  Kf3 {[%clk 0:00:05]} 76. Rd4 {[%clk 0:00:11]}  Ke3 {[%clk 0:00:05]} 77. Rc4 {[%clk 0:00:11]}  Rf7 {[%clk 0:00:05]} 78. Rb4 {[%clk 0:00:11]}  Kd3 {[%clk 0:00:05]} 79. Ra4 {[%clk 0:00:12]}  Re7 {[%clk 0:00:06]} 80. Rb4 {[%clk 0:00:12]}  Kc3 {[%clk 0:00:06]} 81. Ra4 {[%clk 0:00:12]}  Kb3 {[%clk 0:00:04]} 82. Ra1 {[%clk 0:00:13]}  Kc4 {[%clk 0:00:05]} 83. Rh1 {[%clk 0:00:12]}  Re6+ {[%clk 0:00:05]} 84. Kxa7 {[%clk 0:00:11]}  Kxb5 {[%clk 0:00:05]} 85. Rh5 {[%clk 0:00:11]}  Rf6 {[%clk 0:00:05]} 86. Kb7 {[%clk 0:00:11]}  Kc5 {[%clk 0:00:04]} 87. Kc7 {[%clk 0:00:12]}  Kd5 {[%clk 0:00:05]} 88. Kd7 {[%clk 0:00:13]}  Ke4 {[%clk 0:00:05]} 89. Ke7 {[%clk 0:00:13]}  Rg6 {[%clk 0:00:05]} 90. Rh4 {[%clk 0:00:11]}  Rg4 {[%clk 0:00:05]} 91. Rh1 {[%clk 0:00:11]}  Kxf4 {[%clk 0:00:06]} 92. Kf6 {[%clk 0:00:11]}  Rg3 {[%clk 0:00:03]} 93. Rf1+ {[%clk 0:00:12]}  Ke4 {[%clk 0:00:03]} 94. Rxf5 {[%clk 0:00:12]}  Ra3 {[%clk 0:00:03]} 95. Re5+ {[%clk 0:00:12]}  Kf4 {[%clk 0:00:04]} 96. Re6 {[%clk 0:00:13]}  Ra5 {[%clk 0:00:04]} 97. Rb6 {[%clk 0:00:13]}  Rf5+ {[%clk 0:00:04]} 98. Ke6 {[%clk 0:00:13]}  Rh5 {[%clk 0:00:04]} 99. Rb4+ {[%clk 0:00:12]}  Ke3 {[%clk 0:00:05]} 100. Rb3+ {[%clk 0:00:13]}  Kd4 {[%clk 0:00:05]} 101. Rb4+ {[%clk 0:00:13]}  Kc5 {[%clk 0:00:06]} 102. Rg4 {[%clk 0:00:14]}  Rh6+ {[%clk 0:00:05]} 103. Kf5 {[%clk 0:00:14]}  Ra6 {[%clk 0:00:06]} 104. Rg5 {[%clk 0:00:15]}  Kd5 {[%clk 0:00:06]} 105. Kg4+ {[%clk 0:00:16]}  Ke4 {[%clk 0:00:07]} 106. Rf5 {[%clk 0:00:16]}  Rg6+ {[%clk 0:00:07]} 107. Rg5 {[%clk 0:00:17]}  Rf6 {[%clk 0:00:08]} 108. Rg8 {[%clk 0:00:17]}  Rf1 {[%clk 0:00:08]} 109. Re8+ {[%clk 0:00:17]}  Kd5 {[%clk 0:00:08]} 110. Rd8+ {[%clk 0:00:17]}  Ke6 {[%clk 0:00:09]} 111. Re8+ {[%clk 0:00:18]}  Kf7 {[%clk 0:00:08]} 112. Re2 {[%clk 0:00:18]}  Kg6 {[%clk 0:00:08]} 113. Kg3 {[%clk 0:00:18]}  Kg5 {[%clk 0:00:08]} 114. Rf2 {[%clk 0:00:18]}  Rg1+ {[%clk 0:00:08]} 115. Rg2 {[%clk 0:00:19]}  Ra1 {[%clk 0:00:08]} 116. Kf2+ {[%clk 0:00:19]}  Kf4 {[%clk 0:00:09]} 117. Rg8 {[%clk 0:00:19]}  Ra2+ {[%clk 0:00:09]} 118. Ke1 {[%clk 0:00:20]}  Rh2 {[%clk 0:00:06]} 119. Rf8+ {[%clk 0:00:20]}  Ke3 {[%clk 0:00:07]} 120. Re8+ {[%clk 0:00:21]}  Kd3 {[%clk 0:00:08]} 121. Rd8+ {[%clk 0:00:21]}  Ke3 {[%clk 0:00:08]} 122. Re8+ {[%clk 0:00:22]}  Kd4 {[%clk 0:00:09]} 123. Rd8+ {[%clk 0:00:22]}  Ke5 {[%clk 0:00:09]} 124. Re8+ {[%clk 0:00:23]}  Kd6 {[%clk 0:00:10]} 125. Re2 {[%clk 0:00:23]}  Rh1+ {[%clk 0:00:10]} 126. Kd2 {[%clk 0:00:24]}  Ra1 {[%clk 0:00:10]} 127. Re3 {[%clk 0:00:24]}  Kd5 {[%clk 0:00:11]} 128. Rd3+ {[%clk 0:00:23]}  Ke4 {[%clk 0:00:11]} 129. Re3+ {[%clk 0:00:24]}  Kd4 {[%clk 0:00:12]} 130. Rd3+ {[%clk 0:00:25]}  Ke4 {[%clk 0:00:12]} 131. Re3+ {[%clk 0:00:25]}  Kf4 {[%clk 0:00:12]} 132. Rb3 {[%clk 0:00:25]}  Ra2+ {[%clk 0:00:12]} 133. Kd3 {[%clk 0:00:26]}  Rh2 {[%clk 0:00:12]} 134. Rb4+ {[%clk 0:00:26]}  Ke5 {[%clk 0:00:12]} 135. Rb8 {[%clk 0:00:26]}  Rh3+ {[%clk 0:00:12]} 136. Kc4 {[%clk 0:00:27]}  Rh4+ {[%clk 0:00:12]} 137. Kc5 {[%clk 0:00:28]}  Rh1 {[%clk 0:00:13]} 138. Re8+ {[%clk 0:00:28]}  Kf6 {[%clk 0:00:14]} 139. Rf8+ {[%clk 0:00:29]}  Ke7 {[%clk 0:00:14]} 140. Rf3 {[%clk 0:00:29]}  Rc1+ {[%clk 0:00:15]} 141. Kd4 {[%clk 0:00:30]}  Rd1+ {[%clk 0:00:15]} 142. Rd3 {[%clk 0:00:30]}  Rxd3+ {[%clk 0:00:15]} 143. Kxd3 {[%clk 0:00:31]} 1/2-1/2


[Site "https://www.chess.com"]

[Event "Titled Tuesday Blitz August 09 Late 2022"]
[White "Adewumi, Tanitoluwa"]
[Black "Matsuura, Frederico"]
[WhiteFideId "30966396"]
[BlackFideId "2107848"]
[WhiteElo "2518"]
[BlackElo "2302"]
[Result "1-0"]
[Round "10"]
[TimeControl "180+1"]
[Date "2022.08.09"]
[WhiteClock "0:00:08"]
[BlackClock "0:00:03"]

1. e4 {[%clk 0:03:00]}  e6 {[%clk 0:02:59]} 2. d4 {[%clk 0:02:55]}  d5 {[%clk 0:02:59]} 3. Nc3 {[%clk 0:02:54]}  Bb4 {[%clk 0:02:58]} 4. e5 {[%clk 0:02:42]}  Qd7 {[%clk 0:02:58]} 5. Ne2 {[%clk 0:02:36]}  b6 {[%clk 0:02:56]} 6. a3 {[%clk 0:02:35]}  Bf8 {[%clk 0:02:54]} 7. h4 {[%clk 0:02:32]}  Ba6 {[%clk 0:02:53]} 8. h5 {[%clk 0:02:31]}  h6 {[%clk 0:02:50]} 9. g3 {[%clk 0:02:22]}  c5 {[%clk 0:02:50]} 10. Bh3 {[%clk 0:02:14]}  Nc6 {[%clk 0:02:47]} 11. Nf4 {[%clk 0:01:44]}  cxd4 {[%clk 0:02:27]} 12. Ncxd5 {[%clk 0:01:35]}  Qb7 {[%clk 0:02:07]} 13. Nxe6 {[%clk 0:01:16]}  fxe6 {[%clk 0:02:05]} 14. Bxe6 {[%clk 0:01:17]}  Nxe5 {[%clk 0:01:43]} 15. Bf4 {[%clk 0:01:06]}  Bd6 {[%clk 0:01:36]} 16. Rh4 {[%clk 0:00:17]}  Nf6 {[%clk 0:01:24]} 17. Nxf6+ {[%clk 0:00:11]}  gxf6 {[%clk 0:01:24]} 18. Bxe5 {[%clk 0:00:08]}  Bxe5 {[%clk 0:01:14]} 19. Qg4 {[%clk 0:00:07]}  Qe7 {[%clk 0:01:02]} 20. O-O-O {[%clk 0:00:05]}  Rd8 {[%clk 0:00:58]} 21. f4 {[%clk 0:00:03]}  Rd6 {[%clk 0:00:46]} 22. Bf5 {[%clk 0:00:02]}  d3 {[%clk 0:00:39]} 23. fxe5 {[%clk 0:00:02]}  d2+ {[%clk 0:00:39]} 24. Rxd2 {[%clk 0:00:02]}  Rxd2 {[%clk 0:00:38]} 25. Kxd2 {[%clk 0:00:02]}  fxe5 {[%clk 0:00:35]} 26. Qa4+ {[%clk 0:00:02]}  Kd8 {[%clk 0:00:29]} 27. Qxa6 {[%clk 0:00:03]}  Qg5+ {[%clk 0:00:29]} 28. Kd1 {[%clk 0:00:02]}  Qxf5 {[%clk 0:00:29]} 29. Qxa7 {[%clk 0:00:02]}  Qf1+ {[%clk 0:00:26]} 30. Kd2 {[%clk 0:00:01]}  Qf2+ {[%clk 0:00:26]} 31. Kc3 {[%clk 0:00:02]}  Qxg3+ {[%clk 0:00:21]} 32. Kd2 {[%clk 0:00:01]}  Qf2+ {[%clk 0:00:20]} 33. Kd3 {[%clk 0:00:02]}  Qxh4 {[%clk 0:00:20]} 34. Qb8+ {[%clk 0:00:01]}  Kd7 {[%clk 0:00:20]} 35. Qxh8 {[%clk 0:00:02]}  Qd4+ {[%clk 0:00:19]} 36. Ke2 {[%clk 0:00:03]}  Qxb2 {[%clk 0:00:19]} 37. Qh7+ {[%clk 0:00:03]}  Kc8 {[%clk 0:00:19]} 38. Qxh6 {[%clk 0:00:02]}  Qxc2+ {[%clk 0:00:19]} 39. Qd2 {[%clk 0:00:02]}  Qe4+ {[%clk 0:00:17]} 40. Qe3 {[%clk 0:00:02]}  Qg2+ {[%clk 0:00:17]} 41. Kd3 {[%clk 0:00:02]}  Qf1+ {[%clk 0:00:14]} 42. Kc3 {[%clk 0:00:02]}  Qa1+ {[%clk 0:00:12]} 43. Kb4 {[%clk 0:00:02]}  Qb1+ {[%clk 0:00:11]} 44. Qb3 {[%clk 0:00:02]}  Qh1 {[%clk 0:00:08]} 45. Qg8+ {[%clk 0:00:01]}  Kb7 {[%clk 0:00:08]} 46. Qg7+ {[%clk 0:00:01]}  Ka6 {[%clk 0:00:07]} 47. h6 {[%clk 0:00:02]}  Qe4+ {[%clk 0:00:07]} 48. Kc3 {[%clk 0:00:03]}  Qd4+ {[%clk 0:00:06]} 49. Kc2 {[%clk 0:00:04]}  Qc4+ {[%clk 0:00:06]} 50. Kd2 {[%clk 0:00:05]}  Qd4+ {[%clk 0:00:06]} 51. Ke2 {[%clk 0:00:05]}  Qe4+ {[%clk 0:00:06]} 52. Kf2 {[%clk 0:00:05]}  Qf4+ {[%clk 0:00:06]} 53. Kg2 {[%clk 0:00:06]}  Qe4+ {[%clk 0:00:06]} 54. Kg3 {[%clk 0:00:06]}  Qf4+ {[%clk 0:00:06]} 55. Kh3 {[%clk 0:00:07]}  Qf3+ {[%clk 0:00:06]} 56. Kh4 {[%clk 0:00:07]}  Qf4+ {[%clk 0:00:06]} 57. Kh5 {[%clk 0:00:07]}  Qf5+ {[%clk 0:00:06]} 58. Qg5 {[%clk 0:00:08]}  Qh3+ {[%clk 0:00:05]} 59. Kg6 {[%clk 0:00:08]}  Qd3+ {[%clk 0:00:05]} 60. Kg7 {[%clk 0:00:08]}  Qd7+ {[%clk 0:00:03]} 61. Kh8 {[%clk 0:00:08]} 1-0


[Site "https://www.chess.com"]

[Event "Titled Tuesday Blitz August 09 Late 2022"]
[White "Alekseenko, Kirill"]
[Black "Pulpan, Jakub"]
[WhiteFideId "4135539"]
[BlackFideId "302759"]
[WhiteElo "2682"]
[BlackElo "2451"]
[Result "1-0"]
[Round "10"]
[TimeControl "180+1"]
[Date "2022.08.09"]
[WhiteClock "0:00:05"]
[BlackClock "0:00:05"]

1. e4 {[%clk 0:03:00]}  c5 {[%clk 0:02:59]} 2. Nf3 {[%clk 0:03:01]}  Nc6 {[%clk 0:02:59]} 3. Bb5 {[%clk 0:02:59]}  d6 {[%clk 0:02:58]} 4. O-O {[%clk 0:02:56]}  Bd7 {[%clk 0:02:58]} 5. Re1 {[%clk 0:02:57]}  Nf6 {[%clk 0:02:59]} 6. Nc3 {[%clk 0:02:52]}  e6 {[%clk 0:02:50]} 7. a4 {[%clk 0:02:48]}  Ne5 {[%clk 0:02:30]} 8. Bf1 {[%clk 0:02:46]}  Nxf3+ {[%clk 0:02:23]} 9. Qxf3 {[%clk 0:02:46]}  Bc6 {[%clk 0:02:22]} 10. d3 {[%clk 0:02:46]}  Be7 {[%clk 0:02:21]} 11. Qg3 {[%clk 0:02:46]}  O-O {[%clk 0:02:13]} 12. Bh6 {[%clk 0:02:43]}  Ne8 {[%clk 0:02:14]} 13. Bd2 {[%clk 0:02:39]}  Nf6 {[%clk 0:02:13]} 14. Be2 {[%clk 0:02:37]}  d5 {[%clk 0:02:12]} 15. e5 {[%clk 0:02:38]}  Ne8 {[%clk 0:02:08]} 16. f4 {[%clk 0:02:37]}  g6 {[%clk 0:02:03]} 17. Rf1 {[%clk 0:02:35]}  Ng7 {[%clk 0:02:02]} 18. Qh3 {[%clk 0:02:27]}  Qb6 {[%clk 0:01:59]} 19. a5 {[%clk 0:02:20]}  Qxb2 {[%clk 0:01:57]} 20. Rfb1 {[%clk 0:02:17]}  Qxc2 {[%clk 0:01:57]} 21. Ra2 {[%clk 0:02:18]}  Qxa2 {[%clk 0:01:50]} 22. Nxa2 {[%clk 0:02:18]}  b5 {[%clk 0:01:51]} 23. axb6 {[%clk 0:02:13]}  axb6 {[%clk 0:01:52]} 24. Nc3 {[%clk 0:02:13]}  b5 {[%clk 0:01:51]} 25. g4 {[%clk 0:01:43]}  b4 {[%clk 0:01:51]} 26. Nd1 {[%clk 0:01:44]}  Ra2 {[%clk 0:01:36]} 27. Nb2 {[%clk 0:01:44]}  f6 {[%clk 0:01:30]} 28. Qg3 {[%clk 0:01:18]}  fxe5 {[%clk 0:01:30]} 29. fxe5 {[%clk 0:01:19]}  Ra3 {[%clk 0:01:00]} 30. Qe1 {[%clk 0:01:14]}  Rb3 {[%clk 0:00:49]} 31. Bd1 {[%clk 0:01:10]}  Ra3 {[%clk 0:00:49]} 32. d4 {[%clk 0:01:01]}  Bb5 {[%clk 0:00:43]} 33. Be2 {[%clk 0:00:48]}  Bxe2 {[%clk 0:00:43]} 34. Qxe2 {[%clk 0:00:49]}  c4 {[%clk 0:00:44]} 35. Nxc4 {[%clk 0:00:48]}  dxc4 {[%clk 0:00:45]} 36. Qxc4 {[%clk 0:00:48]}  h5 {[%clk 0:00:26]} 37. gxh5 {[%clk 0:00:47]}  gxh5 {[%clk 0:00:25]} 38. Kh1 {[%clk 0:00:45]}  Kh7 {[%clk 0:00:20]} 39. Rg1 {[%clk 0:00:43]}  Raf3 {[%clk 0:00:18]} 40. Bxb4 {[%clk 0:00:33]}  Bxb4 {[%clk 0:00:19]} 41. Qxb4 {[%clk 0:00:33]}  Rf1 {[%clk 0:00:20]} 42. Rxf1 {[%clk 0:00:32]}  Rxf1+ {[%clk 0:00:21]} 43. Kg2 {[%clk 0:00:33]}  Rf4 {[%clk 0:00:20]} 44. Qb1+ {[%clk 0:00:32]}  Kg8 {[%clk 0:00:18]} 45. Qb8+ {[%clk 0:00:30]}  Kh7 {[%clk 0:00:19]} 46. Qd6 {[%clk 0:00:30]}  Rg4+ {[%clk 0:00:18]} 47. Kf3 {[%clk 0:00:30]}  Nf5 {[%clk 0:00:18]} 48. Qd7+ {[%clk 0:00:28]}  Rg7 {[%clk 0:00:18]} 49. Qd8 {[%clk 0:00:27]}  Rg8 {[%clk 0:00:18]} 50. Qb6 {[%clk 0:00:25]}  Rg4 {[%clk 0:00:19]} 51. d5 {[%clk 0:00:19]}  exd5 {[%clk 0:00:19]} 52. e6 {[%clk 0:00:15]}  Nd4+ {[%clk 0:00:16]} 53. Kf2 {[%clk 0:00:13]}  Rf4+ {[%clk 0:00:16]} 54. Kg2 {[%clk 0:00:12]}  Rg4+ {[%clk 0:00:08]} 55. Kh1 {[%clk 0:00:11]}  Re4 {[%clk 0:00:07]} 56. Qb7+ {[%clk 0:00:06]}  Kg6 {[%clk 0:00:07]} 57. Qxd5 {[%clk 0:00:07]}  Re1+ {[%clk 0:00:05]} 58. Kg2 {[%clk 0:00:07]}  Nf5 {[%clk 0:00:04]} 59. Kf2 {[%clk 0:00:05]}  Re3 {[%clk 0:00:03]} 60. Qd7 {[%clk 0:00:04]}  Re5 {[%clk 0:00:01]} 61. Qf7+ {[%clk 0:00:04]}  Kg5 {[%clk 0:00:02]} 62. h4+ {[%clk 0:00:04]}  Kf4 {[%clk 0:00:02]} 63. Qg8 {[%clk 0:00:03]}  Nd4 {[%clk 0:00:02]} 64. Qg3+ {[%clk 0:00:02]}  Ke4 {[%clk 0:00:03]} 65. Qxe5+ {[%clk 0:00:03]}  Kxe5 {[%clk 0:00:03]} 66. e7 {[%clk 0:00:04]}  Nf5 {[%clk 0:00:04]} 67. e8=Q+ {[%clk 0:00:04]}  Kf4 {[%clk 0:00:05]} 68. Qg8 {[%clk 0:00:04]}  Ke4 {[%clk 0:00:04]} 69. Qg5 {[%clk 0:00:05]}  Ke5 {[%clk 0:00:04]} 70. Qxh5 {[%clk 0:00:05]}  Kf4 {[%clk 0:00:05]} 1-0


[Site "https://www.chess.com"]